fUST/lending_fUST_20260114
["ID","MTS","AMOUNT","RATE_DAILY","PERIOD"]
[401826214,1768383041613,-500.0,0.00013273,2]
[401826216,1768383041622,-500.0,0.00013273,2]
[401826218,1768383041631,-500.21355158,0.00013273,2]
[401826220,1768383041641,-500.0,0.00013273,2]
[401826222,1768383041650,-500.0,0.00013273,2]
[401826224,1768383041659,-162.00337471,0.00013273,2]
[401826226,1768383041669,-500.0,0.00013273,2]
[401826227,1768383041679,-500.0,0.00013273,2]
[401826229,1768383041688,-500.49098579,0.00013273,2]
[401826232,1768383041698,-500.18250774,0.00013273,2]
[401826234,1768383041708,-167.63409657,0.00013273,2]
[401826235,1768383041717,-500.0,0.00013273,2]
[401826237,1768383041727,-500.0,0.00013273,2]
[401826240,1768383041736,-500.0,0.00013273,2]
[401826241,1768383041747,-500.0,0.00013273,2]
[401826244,1768383041756,-500.0,0.00013273,2]
[401826245,1768383041764,-500.0,0.00013273,2]
[401826247,1768383041773,-500.0,0.00013273,2]
[401826249,1768383041782,-500.0,0.00013273,2]
[401826251,1768383041791,-547.00656757,0.00013273,2]
[401826253,1768383041801,-500.0,0.00013273,2]
[401826255,1768383041810,-500.0,0.00013273,2]
[401826258,1768383041819,-500.0,0.00013273,2]
[401826259,1768383041828,-500.0,0.00013273,2]
[401826262,1768383041838,-500.0,0.00013273,2]
[401826263,1768383041847,-500.0,0.00013273,2]
[401826265,1768383041856,-500.0,0.00013273,2]
[401826267,1768383041865,-500.0,0.00013273,2]
[401826269,1768383041875,-500.0,0.00013273,2]
[401826271,1768383041883,-500.25674362,0.00013273,2]
[401826273,1768383041893,-500.0,0.00013273,2]
[401826276,1768383041903,-500.0,0.00013273,2]
[401826278,1768383041913,-500.0,0.00013273,2]
[401826280,1768383041922,-501.03457385,0.00013273,2]
[401826282,1768383041932,-500.0,0.00013273,2]
[401826284,1768383041941,-500.20354178,0.00013273,2]
[401826286,1768383041950,-185.624668,0.00013273,2]
[401826287,1768383041959,-500.0,0.00013273,2]
[401826289,1768383041968,-520.1094365,0.00013273,2]
[401826292,1768383041978,-195.77760179,0.00013273,2]
[401826294,1768383041987,-500.28056306,0.00013273,2]
[401826295,1768383041996,-500.0,0.00013273,2]
[401826297,1768383042005,-500.0,0.00013273,2]
[401826300,1768383042014,-500.0,0.00013273,2]
[401826302,1768383042023,-500.0,0.00013273,2]
[401826304,1768383042033,-500.0,0.00013273,2]
[401826306,1768383042043,-500.0,0.00013273,2]
[401826308,1768383042052,-500.0,0.00013273,2]
[401826310,1768383042061,-500.0,0.00013273,2]
[401826312,1768383042069,-500.0,0.00013273,2]
[401826314,1768383042078,-261.59054001,0.00013273,2]
[401826316,1768383042087,-500.0,0.00013273,2]
[401826318,1768383042096,-500.0,0.00013273,2]
[401826320,1768383042105,-500.0,0.00013273,2]
[401826322,1768383042114,-91592.378074,0.00013273,2]
[401826323,1768383042123,-908.0,0.00013288,2]
[401826325,1768383042132,-452.0,0.00013288,2]
[401826327,1768383042141,-6837.50679249,0.00013288,2]
[401826329,1768383042150,-28957.846252,0.00013413,2]
[401826331,1768383042158,-908.0,0.00013425,2]
[401826333,1768383042167,-452.0,0.00013425,2]
[401826335,1768383042176,-500.0,0.00013493,2]
[401826337,1768383042185,-151.0,0.000135,2]
[401826339,1768383042193,-908.0,0.00013562,2]
[401826341,1768383042202,-452.0,0.00013562,2]
[401826343,1768383042211,-509.41314795,0.00013658,2]
[401826345,1768383042220,-913.75299129,0.00013659,2]
[401826347,1768383042230,-300.0,0.00013673,2]
[401826349,1768383042239,-287.27602471,0.00013698,2]
[401826351,1768383042249,-518.87817295,0.00013698,2]
[401826353,1768383042258,-500.0,0.00013698,2]
[401826355,1768383042267,-500.0,0.00013698,2]
[401826357,1768383042276,-500.0,0.00013698,2]
[401826359,1768383042285,-500.0,0.00013698,2]
[401826361,1768383042294,-500.0,0.00013698,2]
[401826363,1768383042303,-500.0,0.00013698,2]
[401826365,1768383042312,-509.06636441,0.00013698,2]
[401826367,1768383042321,-500.0,0.00013698,2]
[401826369,1768383042331,-500.0,0.00013698,2]
[401826371,1768383042340,-622.37610142,0.00013698,2]
[401826373,1768383042349,-500.0,0.00013698,2]
[401826375,1768383042362,-500.0,0.00013698,2]
[401826377,1768383042371,-500.0,0.00013698,2]
[401826379,1768383042381,-500.0,0.00013698,2]
[401826381,1768383042391,-500.0,0.00013698,2]
[401826383,1768383042400,-500.0,0.00013698,2]
[401826385,1768383042409,-582.4382982,0.00013698,2]
[401826387,1768383042418,-589.28,0.00013698,2]
[401826389,1768383042428,-589.28,0.00013698,2]
[401826391,1768383042437,-589.28,0.00013698,2]
[401826393,1768383042446,-589.28,0.00013698,2]
[401826395,1768383042455,-589.28,0.00013698,2]
[401826397,1768383042464,-589.28,0.00013698,2]
[401826399,1768383042473,-589.28,0.00013698,2]
[401826401,1768383042483,-589.28,0.00013698,2]
[401826402,1768383042492,-589.28,0.00013698,2]
[401826405,1768383042502,-589.28,0.00013698,2]
[401826406,1768383042512,-589.28,0.00013698,2]
[401826409,1768383042521,-589.28,0.00013698,2]
[401826411,1768383042530,-589.28,0.00013698,2]
[401826413,1768383042540,-589.28,0.00013698,2]
[401826414,1768383042550,-589.28,0.00013698,2]
[401826415,1768383042559,-589.28,0.00013698,2]
[401826416,1768383042568,-589.28,0.00013698,2]
[401826417,1768383042577,-589.28,0.00013698,2]
[401826418,1768383042587,-589.28,0.00013698,2]
[401826419,1768383042596,-589.28,0.00013698,2]
[401826420,1768383042606,-589.28,0.00013698,2]
[401826421,1768383042615,-589.28,0.00013698,2]
[401826422,1768383042625,-589.28,0.00013698,2]
[401826423,1768383042635,-589.38429935,0.00013698,2]
[401826424,1768383042644,-500.0,0.00013698,2]
[401826425,1768383042653,-500.0,0.00013698,2]
[401826427,1768383042662,-453.49252577,0.00013698,2]
[401826428,1768383042671,-800.23,0.00013698,2]
[401826430,1768383042680,-800.23,0.00013698,2]
[401826431,1768383042690,-800.23,0.00013698,2]
[401826433,1768383042700,-800.23,0.00013698,2]
[401826436,1768383042709,-800.23,0.00013698,2]
[401826438,1768383042719,-800.23,0.00013698,2]
[401826439,1768383042727,-800.23,0.00013698,2]
[401826441,1768383042738,-800.23,0.00013698,2]
[401826444,1768383042748,-800.23,0.00013698,2]
[401826445,1768383042757,-800.23,0.00013698,2]
[401826447,1768383042766,-800.23,0.00013698,2]
[401826449,1768383042774,-800.23,0.00013698,2]
[401826451,1768383042783,-800.23,0.00013698,2]
[401826453,1768383042792,-800.23,0.00013698,2]
[401826455,1768383042801,-800.23,0.00013698,2]
[401826457,1768383042810,-800.23,0.00013698,2]
[401826459,1768383042819,-800.23,0.00013698,2]
[401826461,1768383042829,-800.23,0.00013698,2]
[401826463,1768383042838,-800.23,0.00013698,2]
[401826465,1768383042847,-800.23,0.00013698,2]
[401826467,1768383042856,-800.23,0.00013698,2]
[401826469,1768383042865,-800.23,0.00013698,2]
[401826471,1768383042874,-800.23,0.00013698,2]
[401826473,1768383042883,-800.43872931,0.00013698,2]
[401826475,1768383042893,-500.0,0.00013698,2]
[401826477,1768383042902,-500.0,0.00013698,2]
[401826479,1768383042913,-633.96263391,0.00013698,2]
[401826481,1768383042923,-500.0,0.00013698,2]
[401826483,1768383042933,-500.0,0.00013698,2]
[401826485,1768383042944,-500.0,0.00013698,2]
[401826487,1768383042954,-453.8287473,0.00013698,2]
[401826489,1768383042963,-500.0,0.00013698,2]
[401826491,1768383042974,-500.0,0.00013698,2]
[401826493,1768383042984,-500.0,0.00013698,2]
[401826495,1768383042994,-500.0,0.00013698,2]
[401826497,1768383043003,-497.78018917,0.00013698,2]
[401826499,1768383043013,-1000.0,0.00013698,2]
[401826501,1768383043022,-1000.0,0.00013698,2]
[401826503,1768383043032,-1000.0,0.00013698,2]
[401826505,1768383043041,-1000.0,0.00013698,2]
[401826507,1768383043050,-1000.0,0.00013698,2]
[401826509,1768383043059,-1000.0,0.00013698,2]
[401826511,1768383043068,-1000.0,0.00013698,2]
[401826513,1768383043077,-1017.75755303,0.00013698,2]
[401826517,1768383043085,-500.0,0.00013698,2]
[401826520,1768383043094,-500.0,0.00013698,2]
[401826523,1768383043102,-500.0,0.00013698,2]
[401826525,1768383043111,-500.0,0.00013698,2]
[401826528,1768383043122,-550.39437847,0.00013698,2]
[401826531,1768383043131,-500.0,0.00013698,2]
[401826534,1768383043140,-500.0,0.00013698,2]
[401826537,1768383043150,-500.0,0.00013698,2]
[401826540,1768383043159,-500.0,0.00013698,2]
[401826542,1768383043168,-500.0,0.00013698,2]
[401826544,1768383043178,-500.0,0.00013698,2]
[401826546,1768383043187,-500.0,0.00013698,2]
[401826549,1768383043197,-500.0,0.00013698,2]
[401826550,1768383043207,-500.0,0.00013698,2]
[401826552,1768383043216,-500.0,0.00013698,2]
[401826554,1768383043225,-500.0,0.00013698,2]
[401826556,1768383043234,-500.0,0.00013698,2]
[401826558,1768383043243,-500.0,0.00013698,2]
[401826560,1768383043253,-500.0,0.00013698,2]
[401826562,1768383043262,-585.28946164,0.00013698,2]
[401826575,1768383043372,-504.29229129,0.00013698,2]
[401826577,1768383043381,-500.0,0.00013698,2]
[401826579,1768383043391,-500.0,0.00013698,2]
[401826581,1768383043401,-500.0,0.00013698,2]
[401826583,1768383043410,-559.52204836,0.00013698,2]
[401826585,1768383043420,-500.0,0.00013698,2]
[401826587,1768383043431,-500.0,0.00013698,2]
[401826589,1768383043440,-500.0,0.00013698,2]
[401826591,1768383043449,-500.0,0.00013698,2]
[401826594,1768383043459,-500.0,0.00013698,2]
[401826595,1768383043468,-500.0,0.00013698,2]
[401826597,1768383043477,-500.0,0.00013698,2]
[401826599,1768383043486,-500.0,0.00013698,2]
[401826601,1768383043496,-500.0,0.00013698,2]
[401826603,1768383043505,-500.0,0.00013698,2]
[401826605,1768383043514,-260.74557216,0.00013698,2]
[401826607,1768383043524,-500.0,0.00013698,2]
[401826609,1768383043533,-500.0,0.00013698,2]
[401826611,1768383043542,-500.0,0.00013698,2]
[401826613,1768383043553,-500.0,0.00013698,2]
[401826615,1768383043562,-500.0,0.00013698,2]
[401826617,1768383043571,-500.0,0.00013698,2]
[401826619,1768383043580,-500.0,0.00013698,2]
[401826621,1768383043589,-500.0,0.00013698,2]
[401826623,1768383043598,-500.0,0.00013698,2]
[401826625,1768383043607,-500.0,0.00013698,2]
[401826627,1768383043615,-500.0,0.00013698,2]
[401826629,1768383043624,-500.0,0.00013698,2]
[401826631,1768383043633,-500.0,0.00013698,2]
[401826633,1768383043642,-500.0,0.00013698,2]
[401826635,1768383043651,-500.0,0.00013698,2]
[401826637,1768383043661,-500.0,0.00013698,2]
[401826639,1768383043670,-500.0,0.00013698,2]
[401826641,1768383043679,-500.0,0.00013698,2]
[401826643,1768383043688,-500.0,0.00013698,2]
[401826645,1768383043697,-516.10527878,0.00013698,2]
[401826647,1768383043706,-500.0,0.00013699,2]
[401826649,1768383043715,-500.0,0.00013699,2]
[401826652,1768383043724,-500.0,0.00013699,2]
[401826655,1768383043733,-500.0,0.00013699,2]
[401826658,1768383043742,-500.0,0.00013699,2]
[401826661,1768383043750,-501.43010395,0.00013699,2]
[401826663,1768383043759,-500.0,0.00013699,2]
[401826666,1768383043768,-500.35014826,0.00013699,2]
[401826669,1768383043777,-500.32486546,0.00013699,2]
[401826672,1768383043786,-500.0,0.00013699,2]
[401826675,1768383043794,-500.0,0.00013699,2]
[401826678,1768383043803,-252.90578758,0.00013699,2]
[401826682,1768383043812,-500.0,0.00013699,2]
[401826686,1768383043821,-301.86126485,0.00013699,2]
[401826689,1768383043829,-500.0,0.00013699,2]
[401826692,1768383043838,-500.0,0.00013699,2]
[401826695,1768383043846,-500.0,0.00013699,2]
[401826697,1768383043856,-500.0,0.00013699,2]
[401826699,1768383043864,-500.0,0.00013699,2]
[401826701,1768383043874,-489.04509742,0.00013699,2]
[401826703,1768383043882,-500.0,0.00013699,2]
[401826705,1768383043891,-504.50322617,0.00013699,2]
[401826706,1768383043900,-500.30572678,0.00013699,2]
[401826709,1768383043909,-500.0,0.00013699,2]
[401826711,1768383043918,-500.0,0.00013699,2]
[401826713,1768383043927,-500.0,0.00013699,2]
[401826714,1768383043936,-500.0,0.00013699,2]
[401826716,1768383043945,-500.0,0.00013699,2]
[401826718,1768383043954,-193.02895498,0.00013699,2]
[401826720,1768383043963,-500.0,0.00013699,2]
[401826722,1768383043972,-501.82501982,0.00013699,2]
[401826724,1768383043983,-500.0,0.00013699,2]
[401826726,1768383043992,-500.0,0.00013699,2]
[401826729,1768383044003,-500.0,0.00013699,2]
[401826730,1768383044012,-500.28466628,0.00013699,2]
[401826732,1768383044022,-500.63930151,0.00013699,2]
[401826734,1768383044032,-500.0,0.00013699,2]
[401826736,1768383044041,-500.0,0.00013699,2]
[401826738,1768383044050,-500.0,0.00013699,2]
[401826740,1768383044059,-500.0,0.00013699,2]
[401826742,1768383044068,-500.0,0.00013699,2]
[401826744,1768383044078,-500.0,0.00013699,2]
[401826746,1768383044087,-500.0,0.00013699,2]
[401826748,1768383044096,-500.0,0.00013699,2]
[401826750,1768383044106,-500.0,0.00013699,2]
[401826752,1768383044115,-500.0,0.00013699,2]
[401826754,1768383044127,-500.0,0.00013699,2]
[401826756,1768383044136,-500.0,0.00013699,2]
[401826758,1768383044146,-500.0,0.00013699,2]
[401826760,1768383044155,-500.0,0.00013699,2]
[401826762,1768383044165,-500.0,0.00013699,2]
[401826764,1768383044174,-500.0,0.00013699,2]
[401826766,1768383044183,-500.0,0.00013699,2]
[401826768,1768383044192,-500.0,0.00013699,2]
[401826771,1768383044201,-2000.0,0.00013699,7]
[401826773,1768383044210,-413.79090585,0.00013699,2]
[401826775,1768383044219,-500.0,0.00013699,2]
[401826777,1768383044228,-519.22942888,0.00013699,2]
[401826779,1768383044238,-443.99780341,0.00013699,2]
[401826780,1768383044248,-500.0,0.00013699,2]
[401826783,1768383044258,-500.70727162,0.00013699,2]
[401826785,1768383044268,-500.0,0.00013699,2]
[401826786,1768383044278,-500.0,0.00013699,2]
[401826788,1768383044287,-452.0,0.00013699,2]
[401826790,1768383044296,-908.0,0.00013699,2]
[401826792,1768383044305,-72394.61563,0.00013699,7]
[401826794,1768383044314,-1980.023675,0.00013699,7]
[401826796,1768383044323,-433.32498894,0.00013699,2]
[401826798,1768383044332,-1672.08,0.000137,2]
[401826800,1768383044341,-319.24,0.000137,2]
[401826802,1768383044350,-10000.0,0.00013735,2]
[401826804,1768383044362,-10000.0,0.00013735,2]
[401826806,1768383044371,-4343.48,0.00013735,2]
[401826808,1768383044381,-24424.634154,0.00013735,7]
[401826810,1768383044390,-10000.0,0.00013763,2]
[401826812,1768383044399,-1306.48,0.00013763,2]
[401826814,1768383044408,-500.0,0.00013767,2]
[401826816,1768383044417,-201.241166,0.00013806,2]
[401826818,1768383044427,-1000.0,0.00013821,2]
[401826820,1768383044438,-1000.0,0.00013821,2]
[401826822,1768383044447,-503.63165228,0.00013821,2]
[401826824,1768383044456,-500.0,0.00013821,2]
[401826826,1768383044467,-503.76788333,0.00013821,2]
[401826828,1768383044476,-284.00644743,0.00013821,2]
[401826830,1768383044486,-1002.88869488,0.00013821,2]
[401826832,1768383044496,-1002.68632401,0.00013821,2]
[401826834,1768383044504,-1000.0,0.00013821,2]
[401826836,1768383044514,-1000.0,0.00013821,2]
[401826838,1768383044523,-440.24648614,0.00013821,2]
[401826840,1768383044533,-1000.0,0.00013821,2]
[401826842,1768383044543,-1000.0,0.00013821,2]
[401826844,1768383044552,-1000.0,0.00013821,2]
[401826846,1768383044561,-1000.0,0.00013821,2]
[401826848,1768383044571,-1015.29551893,0.00013821,2]
[401826850,1768383044581,-1000.0,0.00013821,2]
[401826852,1768383044590,-1000.0,0.00013821,2]
[401826854,1768383044599,-1000.0,0.00013821,2]
[401826856,1768383044609,-1000.0,0.00013821,2]
[401826858,1768383044618,-1000.0,0.00013821,2]
[401826860,1768383044627,-1000.0,0.00013821,2]
[401826862,1768383044636,-1000.0,0.00013821,2]
[401826864,1768383044646,-1000.0,0.00013821,2]
[401826866,1768383044655,-169.06993919,0.00013821,2]
[401826868,1768383044664,-1000.0,0.00013821,2]
[401826870,1768383044674,-1003.01901965,0.00013821,2]
[401826872,1768383044684,-424.36340331,0.00013821,2]
[401826874,1768383044693,-1000.0,0.00013821,2]
[401826876,1768383044703,-604.03491902,0.00013821,2]
[401826878,1768383044712,-1000.0,0.00013821,2]
[401826880,1768383044722,-1002.99360219,0.00013821,2]
[401826882,1768383044731,-446.5684735,0.00013821,2]
[401826884,1768383044739,-1000.0,0.00013821,2]
[401826886,1768383044749,-1000.0,0.00013821,2]
[401826888,1768383044757,-1000.0,0.00013821,2]
[401826889,1768383044766,-1000.0,0.00013821,2]
[401826891,1768383044776,-1000.0,0.00013821,2]
[401826893,1768383044785,-771.86141758,0.00013821,2]
[401826896,1768383044795,-1000.0,0.00013821,2]
[401826898,1768383044805,-386.78841051,0.00013821,2]
[401826900,1768383044816,-1000.0,0.00013821,2]
[401826901,1768383044825,-1000.0,0.00013821,2]
[401826903,1768383044836,-502.07442824,0.00013821,2]
[401826906,1768383044846,-344.64451203,0.00013821,2]
[401826907,1768383044855,-471.17015784,0.00013836,2]
[401826909,1768383044864,-918.0018012,0.00013836,2]
[401826911,1768383044874,-1689.25703001,0.00013862,2]
[401826914,1768383044883,-150.15988072,0.00013973,2]
[401826916,1768383044892,-1152.0,0.00013994,2]
[401826918,1768383044902,-1152.0,0.00013994,2]
[401826920,1768383044911,-500.0,0.00014041,2]
[401826921,1768383044920,-916.94366631,0.00014133,2]
[401826923,1768383044930,-1672.08,0.000142,2]
[401826925,1768383044939,-319.24,0.000142,2]
[401826928,1768383044949,-1139.60113208,0.00014213,8]
[401826930,1768383044958,-600.0,0.00014221,2]
[401826932,1768383044967,-1000.0,0.00014247,2]
[401826934,1768383044979,-1086.73306672,0.00014247,2]
[401826935,1768383044987,-1000.0,0.00014247,2]
[401826937,1768383044997,-185.95842189,0.00014247,2]
[401826939,1768383045006,-1000.0,0.00014247,2]
[401826940,1768383045015,-1000.0,0.00014247,2]
[401826941,1768383045024,-250.0,0.00014247,2]
[401826942,1768383045033,-501.04290038,0.00014247,2]
[401826943,1768383045042,-1000.0,0.00014247,2]
[401826944,1768383045051,-1000.0,0.00014247,2]
[401826945,1768383045060,-841.41978725,0.00014247,2]
[401826946,1768383045068,-500.64657654,0.00014247,2]
[401826947,1768383045077,-1000.0,0.00014247,2]
[401826948,1768383045086,-1000.0,0.00014247,2]
[401826949,1768383045095,-1000.0,0.00014247,2]
[401826950,1768383045104,-1000.0,0.00014247,2]
[401826951,1768383045113,-500.65482097,0.00014247,2]
[401826952,1768383045122,-1000.0,0.00014247,2]
[401826953,1768383045132,-500.30863166,0.00014247,2]
[401826954,1768383045141,-503.87539742,0.00014247,2]
[401826955,1768383045151,-1000.0,0.00014247,2]
[401826956,1768383045160,-1000.0,0.00014247,2]
[401826957,1768383045169,-1000.0,0.00014247,2]
[401826958,1768383045178,-1000.0,0.00014247,2]
[401826959,1768383045187,-1000.0,0.00014247,2]
[401826960,1768383045196,-419.62973898,0.00014247,2]
[401826961,1768383045206,-1000.0,0.00014247,2]
[401826962,1768383045215,-1000.0,0.00014247,2]
[401826963,1768383045224,-1000.0,0.00014247,2]
[401826964,1768383045233,-1000.0,0.00014247,2]
[401826965,1768383045243,-1001.20972535,0.00014247,2]
[401826966,1768383045252,-1000.0,0.00014247,2]
[401826968,1768383045263,-1000.0,0.00014247,2]
[401826969,1768383045272,-1000.0,0.00014247,2]
[401826971,1768383045282,-1000.0,0.00014247,2]
[401826973,1768383045291,-1000.0,0.00014247,2]
[401826975,1768383045300,-1000.0,0.00014247,2]
[401826977,1768383045308,-1000.0,0.00014247,2]
[401826979,1768383045317,-1000.0,0.00014247,2]
[401826981,1768383045326,-1000.0,0.00014247,2]
[401826983,1768383045335,-1021.70348589,0.00014247,2]
[401826985,1768383045344,-1000.0,0.00014247,2]
[401826987,1768383045354,-1000.0,0.00014247,2]
[401826989,1768383045365,-503.83285644,0.00014247,2]
[401826991,1768383045374,-343.96245491,0.00014247,2]
[401826993,1768383045383,-490.1818171,0.00014247,2]
[401826995,1768383045393,-1000.0,0.00014247,2]
[401826997,1768383045404,-500.0,0.00014315,2]
[401826999,1768383045414,-1500.0,0.00014368,2]
[401827001,1768383045422,-150.34504526,0.00014368,2]
[401827012,1768383045523,-822.79494335,0.00014368,2]
[401827014,1768383045534,-1123.81068567,0.00014368,2]
[401827016,1768383045544,-556.99110983,0.00014368,2]
[401827018,1768383045554,-453.04414217,0.00014368,2]
[401827020,1768383045564,-1500.0,0.00014368,2]
[401827024,1768383045573,-1500.0,0.00014368,2]
[401827026,1768383045582,-503.99870158,0.00014368,2]
[401827028,1768383045592,-1500.0,0.00014368,2]
[401827030,1768383045601,-153.79187063,0.00014368,2]
[401827032,1768383045610,-1500.0,0.00014368,2]
[401827033,1768383045619,-1500.0,0.00014368,2]
[401827035,1768383045628,-1500.0,0.00014368,2]
[401827037,1768383045637,-1500.0,0.00014368,2]
[401827039,1768383045647,-1500.0,0.00014368,2]
[401827041,1768383045656,-1500.0,0.00014368,2]
[401827043,1768383045665,-1500.0,0.00014368,2]
[401827044,1768383045674,-1500.0,0.00014368,2]
[401827046,1768383045684,-1500.0,0.00014368,2]
[401827048,1768383045693,-1500.0,0.00014368,2]
[401827050,1768383045702,-1500.0,0.00014368,2]
[401827052,1768383045712,-1500.0,0.00014368,2]
[401827054,1768383045721,-408.27996144,0.00014368,2]
[401827056,1768383045731,-1355.28517105,0.00014368,2]
[401827058,1768383045740,-158.07183809,0.00014368,2]
[401827060,1768383045750,-738.47106789,0.00014368,2]
[401827062,1768383045759,-1000.0,0.00014423,2]
[401827065,1768383045775,-244.0,0.00014423,2]
[401827067,1768383045788,-5000.0,0.0001451,2]
[401827069,1768383045797,-100000.0,0.0001459,2]
[401827071,1768383045806,-1630.12207344,0.00014607,2]
[401827073,1768383045816,-4950.059188,0.00014695,7]
[401827075,1768383045825,-1672.08,0.000147,2]
[401827077,1768383045835,-319.24,0.000147,2]
[401827079,1768383045844,-900.0,0.00014768,2]
[401827081,1768383045854,-659.70838602,0.00014795,2]
[401827083,1768383045863,-518.01129916,0.00014795,2]
[401827085,1768383045872,-1500.0,0.00014795,2]
[401827087,1768383045881,-165.99620392,0.00014795,2]
[401827089,1768383045891,-200.84224431,0.00014795,2]
[401827091,1768383045900,-1646.70021057,0.00014795,2]
[401827093,1768383045910,-1503.42728186,0.00014795,2]
[401827095,1768383045920,-1500.0,0.00014795,2]
[401827096,1768383045929,-1500.0,0.00014795,2]
[401827098,1768383045938,-559.25711422,0.00014795,2]
[401827101,1768383045948,-61061.585383,0.00014795,7]
[401827103,1768383045957,-1000.0,0.00014795,2]
[401827105,1768383045967,-1540.3270641,0.00014795,2]
[401827106,1768383045977,-1500.0,0.00014795,2]
[401827108,1768383045986,-1500.0,0.00014795,2]
[401827110,1768383045996,-1500.0,0.00014795,2]
[401827113,1768383046006,-582.85856265,0.00014795,2]
[401827114,1768383046015,-979.00156205,0.00014795,2]
[401827117,1768383046025,-305.98884969,0.00014795,2]
[401827119,1768383046035,-622.97821503,0.00014795,2]
[401827121,1768383046044,-791.25337467,0.00014795,2]
[401827123,1768383046054,-427.69304459,0.00014795,2]
[401827125,1768383046063,-1500.0,0.00014795,2]
[401827127,1768383046073,-1500.0,0.00014795,2]
[401827129,1768383046085,-452.68473609,0.00014795,2]
[401827130,1768383046095,-1500.0,0.00014795,2]
[401827133,1768383046105,-1051.15225971,0.00014795,2]
[401827135,1768383046115,-1500.0,0.00014795,2]
[401827137,1768383046124,-447.8417188,0.00014795,2]
[401827138,1768383046133,-1500.0,0.00014795,2]
[401827141,1768383046143,-1500.0,0.00014795,2]
[401827142,1768383046152,-1500.0,0.00014795,2]
[401827145,1768383046162,-1500.0,0.00014795,2]
[401827147,1768383046171,-1500.0,0.00014795,2]
[401827148,1768383046180,-500.0,0.00014863,2]
[401827151,1768383046190,-595.01188659,0.000149,2]
[401827153,1768383046200,-728.0,0.00014907,2]
[401827155,1768383046209,-162.0,0.00014907,2]
[401827157,1768383046218,-185.93278081,0.00014916,2]
[401827159,1768383046228,-2000.0,0.00014916,2]
[401827161,1768383046237,-2000.0,0.00014916,2]
[401827163,1768383046246,-2000.0,0.00014916,2]
[401827165,1768383046256,-2000.0,0.00014916,2]
[401827167,1768383046265,-1005.48440654,0.00014916,2]
[401827169,1768383046275,-2000.0,0.00014916,2]
[401827171,1768383046284,-878.64680697,0.00014916,2]
[401827173,1768383046293,-2000.0,0.00014916,2]
[401827175,1768383046302,-2000.0,0.00014916,2]
[401827177,1768383046311,-2000.0,0.00014916,2]
[401827179,1768383046321,-2000.0,0.00014916,2]
[401827180,1768383046330,-531.81939639,0.00014916,2]
[401827182,1768383046340,-1288.90612665,0.00014916,2]
[401827184,1768383046350,-1577.72950273,0.00014916,2]
[401827186,1768383046364,-2000.0,0.00014916,2]
[401827189,1768383046374,-3800.82831752,0.00014969,2]
[401827191,1768383046384,-1019.00256747,0.00015,2]
[401827192,1768383046394,-35775.62597585,0.00015,2]
[401827194,1768383046406,-1372.43724231,0.00015,3]
[401827196,1768383046416,-151.00724332,0.00015,2]
[401827199,1768383046427,-8932.61499355,0.00015,7]
[401827201,1768383046437,-2000.0,0.00015014,7]
[401827202,1768383046446,-800.0,0.00015068,2]
[401827205,1768383046456,-2547.06573975,0.00015082,2]
[401827206,1768383046466,-1139.60113208,0.00015139,10]
[401827208,1768383046476,-160.0,0.00015227,2]
[401827210,1768383046485,-12375.147971,0.00015227,7]
[401827213,1768383046496,-28332.575618,0.00015227,7]